fUSD/lending_fUSD_20250607
["ID","MTS","AMOUNT","RATE_DAILY","PERIOD"]
[364932339,1749315035348,-185.348128,0.00018675,2]
[364932340,1749315035358,-151.0,0.00018675,2]
[364932341,1749315035368,-197.335924,0.00018675,2]
[364932342,1749315035377,-207.089752,0.00018675,2]
[364932343,1749315035387,-151.0,0.00018675,2]
[364932344,1749315035396,-151.0,0.00018675,2]
[364932345,1749315035408,-151.0,0.00018675,2]
[364932346,1749315035418,-151.0,0.00018675,2]
[364932347,1749315035429,-151.0,0.00018675,2]
[364932348,1749315035438,-151.0,0.00018675,2]
[364932349,1749315035448,-151.0,0.00018675,2]
[364932350,1749315035458,-945.35189274,0.00018677,2]
[364932351,1749315035469,-1000.0,0.00018685,2]
[364932352,1749315035479,-254.88450249,0.00018693,2]
[364932353,1749315035489,-500.0,0.00018693,2]
[364932354,1749315035499,-279.8693377,0.00018693,2]
[364932355,1749315035509,-3014.0,0.00018693,2]
[364932356,1749315035520,-150.0,0.00018693,2]
[364932357,1749315035530,-476.03327308,0.00018693,2]
[364932358,1749315035542,-1110.0,0.00018693,2]
[364932359,1749315035552,-1000.0,0.00018701,2]
[364932360,1749315035562,-500.0,0.00018705,2]
[364932361,1749315035571,-1000.0,0.00018705,2]
[364932362,1749315035581,-151.0,0.00018705,2]
[364932363,1749315035591,-500.0,0.00018705,2]
[364932364,1749315035601,-1957.856,0.00018705,2]
[364932365,1749315035610,-500.0,0.00018705,2]
[364932366,1749315035620,-500.0,0.00018705,2]
[364932367,1749315035630,-500.0,0.00018705,2]
[364932368,1749315035640,-500.0,0.00018705,2]
[364932369,1749315035650,-500.0,0.00018705,2]
[364932370,1749315035659,-282.0,0.00018705,2]
[364932371,1749315035669,-165.61860727,0.00018705,2]
[364932372,1749315035679,-500.0,0.00018705,2]
[364932373,1749315035689,-191.41445444,0.00018705,2]
[364932374,1749315035700,-668.65185757,0.00018705,2]
[364932375,1749315035709,-500.0,0.00018705,2]
[364932376,1749315035719,-500.0,0.00018705,2]
[364932377,1749315035728,-500.0,0.00018705,2]
[364932378,1749315035738,-500.0,0.00018705,2]
[364932379,1749315035747,-500.0,0.00018705,2]
[364932380,1749315035757,-500.0,0.00018705,2]
[364932381,1749315035767,-646.79596107,0.00018705,2]
[364932382,1749315035776,-500.0,0.00018705,2]
[364932383,1749315035786,-500.0,0.00018705,2]
[364932384,1749315035796,-500.0,0.00018705,2]
[364932385,1749315035807,-500.0,0.00018705,2]
[364932386,1749315035816,-500.0,0.00018705,2]
[364932387,1749315035826,-500.0,0.00018705,2]
[364932388,1749315035835,-207.4,0.00018705,2]
[364932389,1749315035846,-151.0,0.00018705,2]
[364932390,1749315035856,-151.0,0.00018705,2]
[364932391,1749315035866,-151.0,0.00018705,2]
[364932392,1749315035876,-151.0,0.00018705,2]
[364932393,1749315035886,-150.0,0.00018715,2]
[364932394,1749315035896,-500.0,0.00018721,2]
[364932395,1749315035906,-3014.0,0.00018721,2]
[364932396,1749315035917,-215.38208764,0.00018721,2]
[364932397,1749315035927,-1110.0,0.00018721,2]
[364932398,1749315035938,-151.0,0.00018732,2]
[364932399,1749315035948,-151.0,0.00018732,2]
[364932400,1749315035958,-151.0,0.00018732,2]
[364932401,1749315035969,-813.151626,0.00018732,2]
[364932402,1749315035979,-813.151626,0.00018732,2]
[364932403,1749315035988,-151.0,0.00018732,2]
[364932404,1749315035998,-165.85,0.00018734,2]
[364932405,1749315036009,-15633.02584998,0.00018745,2]
[364932406,1749315036019,-151.0,0.00018745,2]
[364932407,1749315036031,-451.253257,0.00018745,2]
[364932408,1749315036043,-451.253257,0.00018745,2]
[364932409,1749315036052,-1041.973618,0.00018745,2]
[364932410,1749315036062,-1041.973618,0.00018745,2]
[364932411,1749315036072,-151.0,0.00018745,2]
[364932412,1749315036082,-206.15849,0.00018745,2]
[364932413,1749315036091,-151.0,0.00018745,2]
[364932414,1749315036101,-151.0,0.00018745,2]
[364932415,1749315036111,-151.0,0.00018745,2]
[364932416,1749315036120,-151.0,0.00018745,2]
[364932417,1749315036130,-821.040408,0.00018745,2]
[364932418,1749315036139,-821.040408,0.00018745,2]
[364932419,1749315036149,-151.0,0.00018745,2]
[364932420,1749315036159,-200.378318,0.00018745,2]
[364932421,1749315036168,-151.0,0.00018745,2]
[364932422,1749315036178,-151.0,0.00018745,2]
[364932423,1749315036188,-151.0,0.00018745,2]
[364932424,1749315036198,-151.0,0.00018745,2]
[364932425,1749315036207,-151.0,0.00018745,2]
[364932426,1749315036216,-151.0,0.00018745,2]
[364932427,1749315036226,-500.0,0.00018748,2]
[364932428,1749315036236,-3014.0,0.00018748,2]
[364932429,1749315036247,-1110.0,0.00018748,2]
[364932430,1749315036466,-322.9356969,0.00018751,2]
[364932431,1749315036505,-2030.296672,0.0001876,2]
[364932432,1749315036515,-235.69714247,0.00018767,2]
[364932433,1749315036858,-308.84060142,0.00018767,2]
[364932452,1749315043192,-379.625458,0.00018685,2]
[364932453,1749315043206,-455.46225611,0.00018767,2]
[364932454,1749315043219,-173.86162008,0.00018767,2]
[364932455,1749315043231,-500.0,0.00018775,2]
[364932456,1749315043244,-408.46935992,0.00018775,2]
[364932457,1749315043506,-2605.53064008,0.00018775,2]
[364932458,1749315043519,-1110.0,0.00018775,2]
[364932459,1749315043533,-150.0,0.00018776,2]
[364932460,1749315043546,-150.0,0.00018785,2]
[364932461,1749315043559,-151.0,0.00018785,2]
[364932462,1749315043572,-151.0,0.00018785,2]
[364932463,1749315043585,-500.0,0.00018803,2]
[364932464,1749315043598,-3014.0,0.00018803,2]
[364932466,1749315043611,-1110.0,0.00018803,2]
[364932467,1749315043624,-159.51,0.00018808,2]
[364932468,1749315043637,-2105.41764886,0.00018815,2]
[364932469,1749315043650,-151.0,0.00018815,2]
[364932470,1749315043662,-151.0,0.00018816,2]
[364932471,1749315043675,-171.270229,0.00018816,2]
[364932472,1749315043688,-171.270229,0.00018816,2]
[364932474,1749315043701,-150.0,0.00018816,2]
[364932475,1749315043715,-9464.95259345,0.0001882,2]
[364932476,1749315043728,-151.0,0.00018827,2]
[364932477,1749315043742,-151.0,0.00018827,2]
[364932478,1749315043756,-151.0,0.00018827,2]
[364932479,1749315043769,-150.0,0.00018827,2]
[364932480,1749315043781,-813.151626,0.00018827,2]
[364932481,1749315043791,-813.151626,0.00018827,2]
[364932482,1749315043801,-151.0,0.00018827,2]
[364932483,1749315043811,-150.0,0.00018829,2]
[364932484,1749315043820,-945.35189274,0.0001883,2]
[364932485,1749315043829,-500.0,0.0001883,2]
[364932486,1749315043839,-3014.0,0.0001883,2]
[364932487,1749315043848,-1110.0,0.0001883,2]
[364932488,1749315043858,-151.0,0.00018837,2]
[364932489,1749315043867,-151.0,0.00018837,2]
[364932490,1749315043877,-158.65329,0.00018837,2]
[364932491,1749315043887,-151.0,0.00018837,2]
[364932492,1749315043896,-152.187875,0.00018837,2]
[364932493,1749315043905,-150.0,0.00018841,2]
[364932494,1749315043915,-481.04818514,0.00018858,2]
[364932495,1749315043924,-3014.0,0.00018858,2]
[364932496,1749315043934,-1110.0,0.00018858,2]
[364932497,1749315043943,-2183.31810187,0.0001887,2]
[364932498,1749315044397,-151.0,0.0001887,2]
[364932499,1749315044428,-153.118461,0.0001887,2]
[364932500,1749315044440,-151.0,0.0001887,2]
[364932501,1749315044449,-151.0,0.0001887,2]
[364932502,1749315044459,-151.0,0.0001887,2]
[364932503,1749315044468,-151.0,0.0001887,2]
[364932504,1749315044478,-167.04956,0.0001887,2]
[364932505,1749315044488,-167.04956,0.0001887,2]
[364932506,1749315044497,-797.913014,0.0001887,2]
[364932507,1749315044507,-797.913014,0.0001887,2]
[364932508,1749315044516,-151.0,0.0001887,2]
[364932509,1749315044526,-151.0,0.0001887,2]
[364932510,1749315044535,-776.177693,0.0001887,2]
[364932511,1749315044545,-776.177693,0.0001887,2]
[364932512,1749315044555,-500.0,0.0001887,2]
[364932513,1749315044565,-500.0,0.0001887,2]
[364932514,1749315044574,-151.0,0.0001887,2]
[364932515,1749315044583,-150.0,0.00018884,2]
[364932516,1749315044592,-1680.0,0.00018884,2]
[364932517,1749315044601,-3014.0,0.00018885,2]
[364932518,1749315044610,-1110.0,0.00018885,2]
[364932519,1749315044619,-153.84991928,0.000189,2]
[364932520,1749315044628,-1000.0,0.000189,6]
[364932521,1749315044638,-150.0,0.0001891,2]
[364932522,1749315044647,-300.0,0.00018911,2]
[364932523,1749315044656,-300.0,0.00018911,2]
[364932524,1749315044665,-200.0,0.00018912,2]
[364932525,1749315044675,-3014.0,0.00018912,2]
[364932526,1749315044684,-1110.0,0.00018912,2]
[364932527,1749315044693,-150.0,0.00018921,2]
[364932528,1749315044702,-228.560935,0.00018921,2]
[364932529,1749315044711,-151.0,0.00018921,2]
[364932530,1749315044720,-2264.10087164,0.00018925,2]
[364932531,1749315044729,-301.046218,0.00018925,2]
[364932532,1749315044738,-301.046218,0.00018925,2]
[364932533,1749315044747,-1233.931042,0.00018925,2]
[364932534,1749315044757,-1233.931042,0.00018925,2]
[364932535,1749315044766,-151.0,0.00018925,2]
[364932536,1749315044775,-151.0,0.00018925,2]
[364932537,1749315044784,-150.0,0.00018928,2]
[364932538,1749315044795,-3014.0,0.0001894,2]
[364932539,1749315044804,-1110.0,0.0001894,2]
[364932540,1749315044813,-150.0,0.00018944,2]
[364932541,1749315044823,-151.0,0.00018947,2]
[364932542,1749315044832,-151.0,0.00018947,2]
[364932543,1749315044841,-151.0,0.00018947,2]
[364932544,1749315044851,-1000.0,0.00018948,2]
[364932545,1749315044860,-151.0,0.00018952,2]
[364932546,1749315044870,-151.0,0.00018952,2]
[364932547,1749315044879,-151.0,0.00018952,2]
[364932548,1749315044888,-151.0,0.00018952,2]
[364932549,1749315044898,-150.0,0.00018966,2]
[364932550,1749315044907,-150.0,0.00018966,2]
[364932551,1749315044916,-3014.0,0.00018967,2]
[364932552,1749315044925,-1110.0,0.00018967,2]
[364932553,1749315044934,-9464.95259345,0.00018974,2]
[364932554,1749315044944,-1000.0,0.00018977,2]
[364932555,1749315044954,-151.0,0.00018977,2]
[364932556,1749315044963,-150.0,0.00018979,2]
[364932557,1749315044972,-1000.0,0.00018979,2]
[364932558,1749315044983,-2347.87260389,0.0001898,2]
[364932559,1749315044992,-945.35189274,0.00018983,2]
[364932560,1749315045002,-150.0,0.00018989,2]
[364932561,1749315045012,-150.0,0.0001899,2]
[364932562,1749315045021,-150.0,0.00018992,2]
[364932563,1749315045031,-3014.0,0.00018995,2]
[364932564,1749315045041,-1110.0,0.00018995,2]
[364932565,1749315045051,-150.0,0.00018995,2]
[364932566,1749315045061,-150.0,0.00018996,2]
[364932567,1749315045071,-924.01812612,0.00019,5]
[364932568,1749315045081,-167.04956,0.00019,2]
[364932569,1749315045090,-151.0,0.00019,2]
[364932570,1749315045099,-167.04956,0.00019,2]
[364932571,1749315045109,-797.913014,0.00019,2]
[364932572,1749315045119,-797.913014,0.00019,2]
[364932573,1749315045128,-776.177693,0.00019,2]
[364932574,1749315045138,-776.177693,0.00019,2]
[364932575,1749315045148,-250.0,0.00019,2]
[364932576,1749315045157,-500.0,0.00019,2]
[364932577,1749315045166,-500.0,0.00019,2]
[364932578,1749315045175,-171.270229,0.00019,2]
[364932579,1749315045184,-171.270229,0.00019,2]
[364932580,1749315045194,-821.040408,0.00019,2]
[364932581,1749315045204,-821.040408,0.00019,2]
[364932582,1749315045214,-151.0,0.00019,2]
[364932583,1749315045223,-151.0,0.00019,2]
[364932584,1749315045233,-151.0,0.00019,2]
[364932585,1749315045243,-151.0,0.00019,2]
[364932586,1749315045252,-151.0,0.00019,2]
[364932587,1749315045262,-813.151626,0.00019,2]
[364932588,1749315045271,-813.151626,0.00019,2]
[364932589,1749315045281,-151.0,0.00019,2]
[364932590,1749315045290,-218.499101,0.00019007,2]
[364932591,1749315045300,-451.253257,0.00019007,2]
[364932592,1749315045309,-451.253257,0.00019007,2]
[364932593,1749315045318,-1041.973618,0.00019007,2]
[364932594,1749315045327,-1041.973618,0.00019007,2]
[364932595,1749315045337,-150.0,0.00019021,2]
[364932596,1749315045346,-3014.0,0.00019022,2]
[364932597,1749315045356,-1110.0,0.00019022,2]
[364932598,1749315045367,-150.0,0.00019028,2]
[364932599,1749315045378,-150.0,0.00019028,2]
[364932600,1749315045387,-1000.0,0.00019033,2]
[364932601,1749315045397,-2434.74389024,0.00019035,2]
[364932602,1749315045407,-151.0,0.00019035,2]
[364932603,1749315045421,-301.046218,0.00019035,2]
[364932604,1749315045431,-301.046218,0.00019035,2]
[364932605,1749315045440,-151.0,0.00019035,2]
[364932606,1749315045450,-151.0,0.00019035,2]
[364932607,1749315045461,-1233.931042,0.00019035,2]
[364932608,1749315045470,-1233.931042,0.00019035,2]
[364932609,1749315045479,-151.0,0.00019035,2]
[364932610,1749315045489,-151.0,0.00019035,2]
[364932611,1749315045498,-151.0,0.00019035,2]
[364932612,1749315045507,-151.0,0.00019035,2]
[364932613,1749315045516,-151.0,0.00019035,2]
[364932614,1749315045526,-151.0,0.00019035,2]
[364932615,1749315045535,-151.0,0.00019035,2]
[364932616,1749315045544,-249.127826,0.00019035,2]
[364932617,1749315045554,-235.368653,0.00019035,2]
[364932618,1749315045563,-151.0,0.00019035,2]
[364932619,1749315045573,-151.0,0.00019035,2]
[364932620,1749315045583,-150.0,0.00019036,2]
[364932621,1749315045592,-151.0,0.00019038,2]
[364932622,1749315045602,-151.0,0.00019038,2]
[364932623,1749315045611,-3014.0,0.00019049,2]
[364932624,1749315045620,-1110.0,0.00019049,2]
[364932625,1749315045630,-165.73,0.00019053,2]
[364932626,1749315045640,-288.0,0.00019065,5]
[364932627,1749315045653,-3014.0,0.00019077,2]
[364932628,1749315045662,-1110.0,0.00019077,2]
[364932629,1749315045672,-167.04956,0.00019089,2]
[364932630,1749315045682,-151.0,0.00019089,2]
[364932631,1749315045692,-167.04956,0.00019089,2]
[364932632,1749315045701,-797.913014,0.00019089,2]
[364932633,1749315045710,-797.913014,0.00019089,2]
[364932634,1749315045719,-776.177693,0.00019089,2]
[364932635,1749315045728,-776.177693,0.00019089,2]
[364932636,1749315045737,-500.0,0.00019089,2]
[364932637,1749315045746,-500.0,0.00019089,2]
[364932638,1749315045755,-171.270229,0.00019089,2]
[364932639,1749315045764,-171.270229,0.00019089,2]
[364932640,1749315045773,-151.0,0.00019089,2]
[364932641,1749315045782,-151.0,0.00019089,2]
[364932642,1749315045791,-2524.82941417,0.0001909,2]
[364932644,1749315045801,-1000.0,0.00019104,2]
[364932645,1749315045811,-3014.0,0.00019104,2]
[364932647,1749315045820,-1110.0,0.00019104,2]
[364932648,1749315045830,-150.0,0.00019105,2]
[364932649,1749315045840,-150.0,0.0001912,2]
[364932650,1749315045849,-151.0,0.00019126,2]
[364932652,1749315045859,-151.0,0.00019126,2]
[364932653,1749315045869,-151.0,0.00019126,2]
[364932654,1749315045879,-151.0,0.00019126,2]
[364932655,1749315045888,-151.0,0.00019126,2]
[364932656,1749315045898,-151.0,0.00019126,2]
[364932657,1749315045908,-151.0,0.00019126,2]
[364932658,1749315045918,-150.0,0.00019127,2]
[364932659,1749315045928,-9464.95259345,0.00019128,2]
[364932661,1749315045937,-1000.0,0.00019131,2]
[364932662,1749315045948,-3014.0,0.00019132,2]
[364932663,1749315045959,-1110.0,0.00019132,2]
[364932664,1749315045969,-151.0,0.00019133,2]
[364932665,1749315045978,-151.0,0.00019133,2]
[364932666,1749315045988,-151.0,0.00019133,2]
[364932667,1749315045997,-813.151626,0.00019133,2]
[364932668,1749315046008,-813.151626,0.00019133,2]
[364932669,1749315046017,-151.0,0.00019133,2]
[364932670,1749315046027,-945.35189274,0.00019136,2]
[364932671,1749315046036,-301.046218,0.00019144,2]
[364932672,1749315046045,-301.046218,0.00019144,2]
[364932673,1749315046055,-1233.931042,0.00019144,2]
[364932674,1749315046064,-1233.931042,0.00019144,2]
[364932675,1749315046074,-229.208143,0.00019144,2]
[364932676,1749315046084,-2618.2481025,0.00019145,2]
[364932677,1749315046094,-150.0,0.0001915,2]
[364932678,1749315046104,-3014.0,0.00019159,2]
[364932679,1749315046113,-1110.0,0.00019159,2]
[364932680,1749315046123,-150.0,0.0001916,2]
[364932681,1749315046133,-150.0,0.00019161,2]
[364932682,1749315046142,-150.0,0.00019161,2]
[364932683,1749315046152,-500.0,0.00019178,2]
[364932684,1749315046161,-379.12695237,0.00019178,2]
[364932685,1749315046170,-151.0,0.00019178,2]
[364932686,1749315046180,-151.0,0.00019178,2]
[364932687,1749315046189,-151.0,0.00019178,2]
[364932688,1749315046199,-151.0,0.00019178,2]
[364932689,1749315046209,-1500.0,0.00019178,2]
[364932690,1749315046220,-151.0,0.00019178,2]
[364932691,1749315046232,-151.0,0.00019178,2]
[364932692,1749315046241,-151.0,0.00019178,2]
[364932693,1749315046251,-151.0,0.00019178,2]
[364932694,1749315046261,-1000.0,0.00019183,2]
[364932695,1749315046272,-352168.24694309,0.00019186,2]
[364933037,1749315070681,1201.78,0.00016374,2]
[364933038,1749315071308,202.0,0.00016424,2]
[364933040,1749315131645,208.0,0.00016424,2]
[364933043,1749315248732,317.441491,7.945e-05,2]
[364933047,1749315439067,352.7,0.00013699,2]
[364933051,1749315607137,194.53,0.00016712,2]
[364933053,1749315733873,162.69516328,0.00016628,20]
[364933054,1749315821778,164.72008625,0.00016545,2]
[364933060,1749316061707,270.0,0.00016505,2]
[364933061,1749316061971,270.0,0.00016944,2]
[364933064,1749316122496,150.0,0.0001705,2]
[364933065,1749316165353,-250.0,0.00017384,3]
[364933066,1749316207946,-250.0,0.00038969,120]
[364933067,1749316211596,250.0,0.00016505,2]
[364933089,1749316232311,-20.0,0.00017384,3]
[364933090,1749316232322,-1320.58925,0.00017432,2]
[364933091,1749316232344,-1377.734258,0.00017432,2]
[364933092,1749316232354,-300.0,0.00017444,2]
[364933093,1749316232364,-159.69768185,0.00017505,2]
[364933094,1749316232374,-300.0,0.00017698,2]
[364933095,1749316232384,-1387.73,0.00017803,2]
[364933096,1749316232394,-397.85,0.00017808,2]
[364933097,1749316232404,-150.0,0.00017819,7]
[364933098,1749316232414,-270.0,0.00017823,3]
[364933099,1749316232423,-406.59,0.00017887,2]
[364933100,1749316232433,-250.0,0.00017893,2]
[364933101,1749316232443,-687.16425736,0.000179,2]
[364933102,1749316232456,-512.83574264,0.000179,2]
[364933103,1749316232466,-300.0,0.000179,2]
[364933104,1749316232476,-294.81041581,0.00017901,2]
[364933105,1749316232496,-1819.99994,0.00017901,2]
[364933106,1749316232508,-21785.18964419,0.00017901,2]
[364933120,1749316232738,-633.57,0.00017908,2]
[364933122,1749316232749,-170.33,0.00017909,2]
[364933124,1749316232759,-1000.0,0.00017923,2]
[364933126,1749316232769,-217.77,0.00018044,2]
[364933128,1749316232778,-380.12,0.00018088,2]
[364933130,1749316232788,-270.0,0.00018262,4]
[364933132,1749316232798,-3834.17,0.00018356,2]
[364933134,1749316232808,-1957.856,0.00018373,2]
[364933136,1749316232818,-207.4,0.00018373,2]
[364933138,1749316232827,-1267.58820166,0.00018384,2]
[364933140,1749316232837,-2030.296672,0.00018428,2]
[364933142,1749316232848,-167.71,0.00018429,2]
[364933144,1749316232857,-1267.58820166,0.00018466,2]
[364933146,1749316232867,-871.49552514,0.00018483,2]
[364933148,1749316232909,-1233.92212372,0.00018483,2]
[364933149,1749316232919,-5281.31340091,0.00018501,2]
[364933150,1749316232930,-2453.01619721,0.00018501,2]
[364933244,1749316238233,-6047.04,0.00018501,2]
[364933377,1749316240310,-606.8395107,0.00018501,2]
[364933404,1749316240571,-2572.5142845,0.00018501,2]
[364933408,1749316240596,-317.44149084,0.00018501,2]
[364933412,1749316240624,-769.55977257,0.00018501,2]
[364933784,1749316246578,-1281.324,0.00018501,2]
[364933793,1749316363033,1141.69,0.00016113,2]
[364933795,1749316713400,359.55,0.00013699,2]
[364933796,1749316751874,256.0,0.00016702,2]
[364933797,1749316753368,-255.25751031,0.00017139,2]
[364933798,1749316758550,-0.74248969,0.00017139,2]
[364933801,1749317111516,251.0,0.00016576,2]
[364933802,1749317111753,251.0,0.00017015,2]
[364933803,1749317202032,-197.66194654,0.0002,120]
[364933937,1749317343371,1084.6,0.00015935,2]
[364933945,1749317432651,-300.0,0.0001744,2]
[364933947,1749317432661,-251.0,0.00017454,3]
[364933949,1749317432671,-168.44,0.000175,7]
[364933953,1749317432755,-1567.03,0.000175,7]
[364933954,1749317432765,-277.0,0.000175,2]
[364933955,1749317432775,-300.0,0.00017554,2]
[364933956,1749317432784,-339.75,0.00017851,2]
[364933957,1749317432794,-1200.0,0.00017864,2]
[364933958,1749317432804,-300.0,0.00017865,2]
[364933959,1749317432814,-9640.06,0.00017866,2]
[364933960,1749317432823,-1000.0,0.00017874,2]
[364933961,1749317432833,-251.0,0.00017892,3]
[364933962,1749317432843,-150.0,0.00017911,7]
[364933963,1749317432852,-226.3,0.00017941,2]
[364933964,1749317432862,-1084.6,0.00018199,2]
[364933965,1749317432872,-356.0,0.00018225,2]
[364933966,1749317432882,-461.04,0.00018226,2]
[364933967,1749317432892,-461.04,0.00018226,2]
[364933968,1749317432901,-461.04,0.00018226,2]
[364933969,1749317432911,-461.04,0.00018226,2]
[364933970,1749317432921,-461.04,0.00018226,2]
[364933971,1749317432930,-461.04,0.00018226,2]
[364933972,1749317432940,-456.67,0.00018226,2]
[364933973,1749317432950,-461.04,0.00018226,2]
[364933974,1749317432959,-461.04,0.00018226,2]
[364933975,1749317432969,-921.88,0.00018226,2]
[364933976,1749317432978,-461.04,0.000183,2]
[364933977,1749317432988,-461.04,0.000183,2]
[364933978,1749317432997,-461.04,0.000183,2]
[364933979,1749317433007,-461.04,0.000183,2]
[364933980,1749317433016,-151.0,0.00018309,2]
[364933981,1749317433026,-151.0,0.00018309,2]
[364933982,1749317433037,-1957.856,0.00018309,2]
[364933983,1749317433047,-1000.0,0.00018309,2]
[364933984,1749317433056,-668.65185757,0.00018309,2]
[364933985,1749317433066,-151.0,0.00018309,2]
[364933986,1749317433076,-207.4,0.00018309,2]
[364933987,1749317433087,-16065.78307117,0.0001831,2]
[364933988,1749317433097,-17265.13917942,0.0001832,2]
[364933989,1749317433106,-251.0,0.00018331,4]
[364933990,1749317433117,-151.0,0.00018364,2]
[364933991,1749317433127,-2030.296672,0.00018364,2]
[364933992,1749317433137,-2105.41764886,0.00018419,2]
[364933993,1749317433147,-2183.31810187,0.00018474,2]
[364933994,1749317433158,-1267.58820166,0.00018521,2]
[364933995,1749317433168,-151.0,0.00018524,2]
[364933996,1749317433178,-151.0,0.00018524,2]
[364933997,1749317433188,-217.827911,0.00018524,2]
[364933998,1749317433198,-2264.10087164,0.00018529,2]
[364933999,1749317433208,-299.99,0.00018533,4]
[364934000,1749317433217,-9999.99,0.00018533,2]
[364934001,1749317433229,-150.99,0.00018533,2]
[364934002,1749317433239,-2132.95,0.00018533,2]
[364934003,1749317433248,-499.99,0.00018533,2]
[364934004,1749317433258,-150.99,0.00018533,2]
[364934005,1749317433268,-999.99,0.00018533,2]
[364934006,1749317433278,-2347.87260389,0.00018584,2]
[364934007,1749317433289,-995.65889559,0.00018603,2]
[364934012,1749317438492,-271.92930607,0.00018603,2]
[364934013,1749317438503,-151.0,0.00018611,2]
[364934014,1749317438512,-151.0,0.00018611,2]
[364934015,1749317438523,-151.0,0.00018611,2]
[364934016,1749317438533,-151.0,0.00018624,2]
[364934017,1749317438543,-162.798157,0.00018624,2]
[364934018,1749317438552,-151.0,0.00018624,2]
[364934019,1749317438561,-151.0,0.00018624,2]
[364934020,1749317438571,-151.0,0.00018624,2]
[364934021,1749317438581,-151.0,0.00018624,2]
[364934022,1749317438590,-155.208437,0.00018624,2]
[364934023,1749317438599,-151.0,0.00018624,2]
[364934027,1749317438623,-151.0,0.00018624,2]
[364934029,1749317438634,-171.875355,0.00018624,2]
[364934031,1749317438644,-171.875355,0.00018624,2]
[364934033,1749317438654,-500.0,0.00018638,2]
[364934035,1749317438664,-500.0,0.00018638,2]
[364934037,1749317438675,-500.0,0.00018638,2]
[364934039,1749317438685,-500.0,0.00018638,2]
[364934041,1749317438696,-459.19644141,0.00018638,2]
[364934043,1749317438706,-376.60235705,0.00018638,2]
[364934045,1749317438716,-2434.74389024,0.00018639,2]
[364934047,1749317438726,-151.0,0.00018648,2]
[364934049,1749317438736,-292.4,0.00018656,2]
[364934051,1749317438746,-150.0,0.00018656,2]
[364934054,1749317438757,-151.0,0.00018665,2]
[364934057,1749317438768,-261.759666,0.00018665,2]
[364934060,1749317438779,-151.0,0.00018675,2]
[364934062,1749317438789,-151.0,0.00018675,2]
[364934064,1749317438799,-151.0,0.00018675,2]
[364934066,1749317438809,-151.0,0.00018675,2]
[364934068,1749317438819,-151.0,0.00018675,2]
[364934070,1749317438829,-171.875355,0.00018675,2]
[364934072,1749317438839,-171.875355,0.00018675,2]
[364934074,1749317438849,-1267.58820166,0.00018685,2]
[364934076,1749317438859,-2524.82941417,0.00018694,2]
[364934078,1749317438868,-151.0,0.00018705,2]
[364934080,1749317438878,-151.0,0.00018732,2]
[364934082,1749317438888,-1267.58820166,0.0001874,2]
[364934084,1749317438899,-151.0,0.00018745,2]
[364934086,1749317438908,-151.0,0.00018745,2]
[364934088,1749317438918,-151.0,0.00018745,2]
[364934090,1749317438928,-151.0,0.00018745,2]
[364934092,1749317438938,-171.875355,0.00018745,2]
[364934095,1749317438949,-171.875355,0.00018745,2]